bitfinex/quotes_SOLUSD_20240703
["timestamp","ask_amount","ask_price","bid_price","bid_amount"]
[1719991854775,7.10237368,147.12,147.1,6.7977]
[1719991854979,7.10237368,147.12,147.11,6.7976]
[1719991855561,0.07968714,147.13,147.12,6.7971]
[1719991856885,0.07968714,147.13,147.12,36.7971]
[1719991862477,0.07968714,147.13,147.12,37.1371]
[1719991863197,6.70897967,147.23,147.13,6.0093]
[1719991863371,13.50117967,147.23,147.18,6.794]
[1719991863572,6.7919,147.24,147.14,31.38]
[1719991863796,6.7925,147.22,147.18,6.7943]
[1719991864008,6.7937,147.2,147.14,31.21]
[1719991864182,6.70897967,147.22,147.14,31.21]
[1719991864488,13.50177967,147.22,147.17,6.7945]
[1719991864690,6.7921,147.23,147.18,6.7943]
[1719991864875,6.793,147.22,147.17,6.7948]
[1719991865064,6.70897967,147.23,147.18,6.7943]
[1719991865468,6.70897967,147.23,147.19,6.7937]
[1719991865878,21.7959,147.26,147.21,6.7926]
[1719991866195,6.70897967,147.26,147.22,6.7924]
[1719991866400,6.70897967,147.26,147.23,6.792]
[1719991866573,6.7899,147.28,147.23,6.792]
[1719991866894,6.7895,147.29,147.2,31.21]
[1719991867076,6.70897967,147.29,147.22,6.7924]
[1719991867283,6.70897967,147.28,147.19,36.7239]
[1719991867476,13.49897967,147.28,147.2,0.17]
[1719991867677,6.7903,147.27,147.23,6.7919]
[1719991868391,6.7903,147.27,147.2,0.17]
[1719991868392,13.49887967,147.28,147.2,0.17]
[1719991868600,6.70897967,147.28,147.25,6.7909]
[1719991868996,6.70897967,147.28,147.24,6.7914]
[1719991869302,6.70897967,147.28,147.25,6.7911]
[1719991869676,6.70897967,147.28,147.26,6.7906]
[1719991870001,6.70897967,147.28,147.24,6.7915]
[1719991870173,6.70897967,147.28,147.25,6.7911]
[1719991870701,6.70897967,147.28,147.26,6.7906]
[1719991871068,6.70897967,147.28,147.27,6.7902]
[1719991871395,13.3125128,147.32,147.26,6.7905]
[1719991871700,6.70897967,147.31,147.21,30.0]
[1719991871874,6.70897967,147.31,147.27,6.7899]
[1719991872191,6.70897967,147.31,147.29,6.7891]
[1719991872394,6.70897967,147.31,147.28,6.7897]
[1719991872580,6.70897967,147.31,147.27,6.79]
[1719991873187,6.70897967,147.31,147.26,6.7905]
[1719991873188,13.49747967,147.31,147.26,6.7905]
[1719991873402,6.70897967,147.31,147.27,6.79]
[1719991873911,6.70897967,147.31,147.28,6.7897]
[1719991874076,6.70897967,147.31,147.29,6.7892]
[1719991874275,6.70897967,147.31,147.28,6.7896]
[1719991875187,6.7893,147.29,147.25,6.7911]
[1719991875397,27.17897967,147.31,147.19,37.5939]
[1719991875708,6.7899,147.28,147.23,6.7919]
[1719991876079,6.7902,147.27,147.23,6.7919]
[1719991876296,6.791,147.26,147.19,6.3839]
[1719991876498,6.7903,147.27,147.19,6.3839]
[1719991876908,6.7899,147.28,147.23,6.7917]
[1719991877211,6.7903,147.27,147.22,6.7924]
[1719991877418,6.7903,147.27,147.13,100.0]
[1719991877419,22.17117967,147.27,147.15,6.4163]
[1719991877719,6.7919,147.24,147.19,6.7935]
[1719991878013,6.7919,147.24,147.15,6.4163]
[1719991878215,6.7917,147.24,147.2,6.7931]
[1719991878390,6.7921,147.23,147.19,6.7939]
[1719991878593,6.7913,147.25,147.2,6.7933]
[1719991878910,13.50027967,147.25,147.21,6.7929]
[1719991879126,6.70897967,147.25,147.15,37.6263]
[1719991879289,13.50007967,147.25,147.15,37.6263]
[1719991879485,13.50007967,147.25,147.21,6.7929]
[1719991879716,13.50007967,147.25,147.15,37.6263]
[1719991879917,13.50007967,147.25,147.2,6.7933]
[1719991882318,13.50057967,147.24,147.2,6.7933]
[1719991883207,6.70897967,147.24,147.2,6.7933]
[1719991883811,6.70897967,147.24,147.16,0.34]
[1719991884015,6.70897967,147.24,147.16,20.34]
[1719991884221,6.70897967,147.24,147.22,6.7922]
[1719991885217,6.70897967,147.24,147.16,20.34]
[1719991885218,6.70897967,147.24,147.23,6.792]
[1719991885808,15.4622,147.27,147.24,6.7915]
[1719991886906,13.49887967,147.28,147.24,6.7915]
[1719991887314,6.467,147.3,147.24,6.7915]
[1719991887315,6.7894,147.29,147.24,6.7915]
[1719991888430,6.7898,147.28,147.24,6.7915]
[1719991888638,6.7898,147.28,147.19,15.715]
[1719991888639,16.0137,147.31,147.19,15.715]
[1719991888935,22.8021,147.31,147.27,6.7901]
[1719991889111,22.8021,147.31,147.2,20.34]
[1719991889317,22.8021,147.31,147.26,6.7905]
[1719991889516,6.7889,147.3,147.26,6.7905]
[1719991889718,6.7889,147.3,147.25,6.7909]
[1719991889919,6.70897967,147.3,147.26,6.7903]
[1719991890238,6.7885,147.31,147.27,6.7902]
[1719991890415,6.2596,147.33,147.24,0.17]
[1719991890613,6.7889,147.3,147.26,6.7904]
[1719991890830,6.7889,147.3,147.25,6.7909]
[1719991891424,6.7889,147.3,147.26,6.7906]
[1719991891744,13.49787967,147.3,147.26,6.7906]
[1719991892136,13.49787967,147.3,147.25,6.7908]
[1719991892554,13.49787967,147.3,147.03,33.61974428]
[1719991892555,36.4837,147.29,147.16,21.8397]
[1719991892733,26.7296,147.26,147.16,21.8397]
[1719991892929,26.7296,147.26,147.13,275.815]
[1719991892930,58.38897967,147.25,147.13,275.815]
[1719991893148,58.55897967,147.25,147.13,275.815]
[1719991893448,37.91897967,147.25,147.13,275.815]
[1719991893645,6.7916,147.24,147.2,6.7933]
[1719991893852,6.7916,147.24,147.19,6.7938]
[1719991894050,6.70897967,147.25,147.19,6.7938]
[1719991894051,6.7921,147.23,147.19,6.7938]
[1719991894353,6.7926,147.22,147.17,6.7947]
[1719991894554,6.793,147.21,147.17,6.7947]
[1719991894742,13.50147967,147.23,147.17,6.7947]
[1719991894934,13.50147967,147.23,147.18,6.7942]
[1719991895846,6.70897967,147.23,147.13,275.815]
[1719991896051,6.70897967,147.23,147.2,6.7933]
[1719991898243,6.7904,147.27,147.22,6.7925]
[1719991898438,13.49937967,147.27,147.22,6.7925]
[1719991898643,13.49937967,147.27,147.19,0.34]
[1719991898843,13.49937967,147.27,147.21,6.7925]
[1719991898844,6.7907,147.26,147.21,6.7925]
[1719991899243,6.7907,147.26,147.22,6.7925]
[1719991901750,6.7907,147.26,147.21,6.7928]
[1719991903071,6.7914,147.25,147.21,6.7928]
[1719991903266,16.0137,147.29,147.15,22.372]
[1719991903570,22.8031,147.29,147.24,6.7914]
[1719991903881,16.0137,147.29,147.17,31.21]
[1719991904174,16.0137,147.29,147.23,6.7916]
[1719991904368,6.7898,147.28,147.24,6.7914]
[1719991905561,22.8031,147.29,147.24,6.7914]
[1719991905876,22.8031,147.29,147.25,6.791]
[1719991907883,22.8031,147.29,147.18,0.34]
[1719991907884,22.05101301,147.29,147.18,0.34]
[1719991908082,6.7912,147.25,147.21,6.7928]
[1719991908270,6.791,147.26,147.21,6.7928]
[1719991908981,6.791,147.26,147.22,6.7924]
[1719991909159,6.7904,147.27,147.22,6.7924]
[1719991909579,6.7904,147.27,147.23,6.792]
[1719991909970,6.7904,147.27,147.22,6.7923]
[1719991910368,6.7908,147.26,147.22,6.7923]
[1719991910692,6.7913,147.25,147.21,6.7928]
[1719991910987,6.03731301,147.28,147.21,6.7928]
[1719991910988,6.7909,147.26,147.21,6.7928]
[1719991911189,6.7923,147.23,147.19,6.7936]
[1719991911366,6.03731301,147.26,147.15,22.372]
[1719991911688,6.7917,147.24,147.19,6.7936]
[1719991911874,6.7917,147.24,147.2,6.7933]
[1719991912258,6.03731301,147.26,147.15,22.372]
[1719991912483,6.03731301,147.26,147.18,6.794]
[1719991912690,6.7924,147.23,147.18,6.794]
[1719991912911,6.7924,147.23,147.19,6.7939]
[1719991913190,6.7924,147.23,147.18,6.7943]
[1719991913387,6.7924,147.23,147.19,6.7938]
[1719991913971,37.4492,147.24,147.15,16.2557]
[1719991914166,37.4492,147.24,147.15,6.7956]
[1719991914167,6.794,147.19,147.15,6.7956]
[1719991914469,6.794,147.19,147.12,6.6089]
[1719991914470,6.7934,147.2,147.16,6.7952]
[1719991914671,6.7944,147.18,147.12,6.6089]
[1719991914987,23.01921301,147.22,147.12,6.6089]
[1719991914988,6.7935,147.2,147.12,6.6089]
[1719991915173,6.7935,147.2,147.15,6.7956]
[1719991915378,6.7935,147.2,147.16,6.7951]
[1719991916199,6.7931,147.21,147.17,6.7948]
[1719991917498,6.03731301,147.22,147.19,6.7936]
[1719991918201,6.03731301,147.22,147.18,6.7942]
[1719991919579,6.03731301,147.22,147.19,6.7939]
[1719991920178,6.03731301,147.22,147.18,6.7943]
[1719991920797,12.82991301,147.22,147.17,6.7947]
[1719991920974,6.03731301,147.22,147.15,6.7954]
[1719991921167,6.7936,147.2,147.16,6.7952]
[1719991921573,12.83091301,147.2,147.15,6.7956]
[1719991921773,6.03731301,147.2,147.17,6.7948]
[1719991922197,6.03731301,147.2,147.16,6.7951]
[1719991922382,12.83081301,147.2,147.16,6.7951]
[1719991922707,6.794,147.19,147.15,6.7957]
[1719991923081,12.83081301,147.2,147.16,6.7952]
[1719991923299,6.03731301,147.2,147.16,6.7952]
[1719991923688,6.03731301,147.2,147.17,6.7947]
[1719991924207,6.03731301,147.2,147.16,6.7951]
[1719991924379,6.03731301,147.2,147.15,6.7956]
[1719991925002,12.83081301,147.2,147.16,6.7952]
[1719991925305,12.83081301,147.2,147.15,6.7956]
[1719991925509,6.03731301,147.2,147.14,6.7962]
[1719991925893,6.7941,147.19,147.15,6.7957]
[1719991926794,12.83091301,147.2,147.15,6.7957]
[1719991927108,12.83091301,147.2,147.16,6.7952]
[1719991927401,33.30091301,147.2,147.15,6.7957]
[1719991927613,0.17,147.19,147.15,6.7957]
[1719991928406,6.03731301,147.2,147.1,47.2346]
[1719991928587,6.03731301,147.2,147.17,6.7948]
[1719991929009,6.03731301,147.2,147.18,6.7942]
[1719991930219,6.03731301,147.2,147.17,6.7948]
[1719991930432,6.03731301,147.2,147.16,6.7952]
[1719991931022,6.03731301,147.2,147.17,6.7947]
[1719991931220,6.03731301,147.2,147.16,6.7951]
[1719991932404,6.03731301,147.2,147.17,6.7948]
[1719991932805,6.03731301,147.2,147.16,6.7952]
[1719991933517,6.03731301,147.2,147.1,47.2346]
[1719991933518,6.03731301,147.2,147.17,6.7946]
[1719991935027,12.83081301,147.2,147.16,6.7953]
[1719991935223,6.03731301,147.2,147.16,6.7953]
[1719991935429,6.03731301,147.2,147.1,396.4246]
[1719991935613,6.03731301,147.2,147.11,0.34]
[1719991936127,22.0231,147.23,147.19,6.7939]
[1719991936128,15.3907,147.23,147.19,6.7939]
[1719991936317,15.3907,147.23,147.2,6.7934]
[1719991937039,15.3907,147.23,147.19,6.7937]
[1719991937209,28.22011301,147.23,147.19,6.7937]
[1719991937403,28.22011301,147.23,147.19,6.7939]
[1719991938134,21.42801301,147.23,147.19,6.7939]
[1719991940044,21.42801301,147.23,147.18,6.7942]
[1719991940717,21.42801301,147.23,147.13,6.1565]
[1719991941034,6.03731301,147.23,147.21,6.7929]
[1719991941211,6.03731301,147.23,147.15,47.2564]
[1719991941212,6.03731301,147.23,147.22,6.7925]
[1719991941724,6.03731301,147.23,147.15,47.2564]
[1719991941926,6.03731301,147.23,147.16,20.34]
[1719991942745,6.03731301,147.23,147.21,6.7927]
[1719991943935,6.03731301,147.23,147.16,20.34]
[1719991945425,6.03731301,147.23,147.18,6.7943]
[1719991945735,12.82961301,147.23,147.19,6.7938]
[1719991946130,6.03731301,147.23,147.19,6.7938]
[1719991949638,6.7931,147.21,147.16,6.7952]
[1719991949828,12.62351301,147.21,147.16,6.7952]
[1719991950019,6.7935,147.2,147.15,6.7956]
[1719991950847,19.41661301,147.21,147.12,15.4203]
[1719991951342,12.62351301,147.21,147.17,6.7947]
[1719991951540,6.03731301,147.2,147.17,6.7947]
[1719991952235,6.03731301,147.2,147.16,6.7951]
[1719991952434,6.03731301,147.2,147.17,6.7948]
[1719991952934,6.03731301,147.2,147.16,6.7952]
[1719991953626,6.03731301,147.2,147.17,6.7948]
[1719991954034,6.03731301,147.2,147.12,15.4203]
[1719991954225,6.03731301,147.2,147.19,6.7939]
[1719991955234,6.03731301,147.2,147.18,6.7942]
[1719991955634,6.03731301,147.2,147.19,6.7939]
[1719991955836,15.8715,147.22,147.19,6.7939]
[1719991957153,19.41551301,147.24,147.19,6.7939]
[1719991957659,6.03731301,147.23,147.19,6.7939]
[1719991957959,12.82941301,147.23,147.19,6.7939]
[1719991960167,21.8078,147.25,147.15,6.1365]
[1719991960455,21.8078,147.25,147.21,6.7929]
[1719991961866,37.3478,147.25,147.21,6.7929]
[1719991962744,37.3478,147.25,147.2,22.3332]
[1719991963462,37.3478,147.25,147.21,6.7929]
[1719991964155,6.7918,147.24,147.2,22.3333]
[1719991964461,22.3321,147.23,147.19,6.7936]
[1719991964652,15.54,147.23,147.19,6.7936]
[1719991964857,27.84491301,147.25,147.2,6.7933]
[1719991965048,22.3316,147.24,147.2,6.7933]
[1719991965669,27.84481301,147.25,147.2,6.7933]
[1719991965972,15.54,147.24,147.21,6.7928]
[1719991966157,22.3319,147.24,147.2,6.7933]
[1719991966360,28.36921301,147.24,147.2,6.7933]
[1719991966881,21.57731301,147.24,147.21,6.7929]
[1719991967263,6.03731301,147.24,147.21,6.7929]
[1719991970580,15.54,147.21,147.18,6.7943]
[1719991970784,6.793,147.21,147.17,6.7947]
[1719991970967,6.03731301,147.22,147.12,21.99382122]
[1719991970968,15.54,147.2,147.12,21.99382122]
[1719991971285,6.03731301,147.22,147.13,15.54]
[1719991971286,15.54,147.18,147.13,15.54]
[1719991972085,15.54,147.18,147.15,6.7955]
[1719991972466,15.54,147.18,147.16,6.7952]
[1719991972784,15.54,147.19,147.17,6.7948]
[1719991973168,15.54,147.2,147.17,6.7948]
[1719991975278,12.83041301,147.21,147.16,6.7951]
[1719991975477,15.54,147.2,147.16,6.7951]
[1719991976197,15.54,147.2,147.17,6.7947]
[1719991976368,6.03731301,147.21,147.18,6.7939]
[1719991976570,21.57731301,147.21,147.18,6.7939]
[1719991978888,21.57731301,147.21,147.17,6.7946]
[1719991979793,6.03731301,147.21,147.18,6.7943]
[1719991980467,12.83041301,147.21,147.17,6.7946]
[1719991980789,28.37041301,147.21,147.17,6.7946]
[1719991981272,6.7935,147.2,147.16,22.3351]
[1719991981689,28.37041301,147.21,147.17,6.7947]
[1719991982210,12.83041301,147.21,147.17,6.7947]
[1719991982410,28.37041301,147.21,147.17,6.7947]
[1719991983197,28.37041301,147.21,147.16,22.3351]
[1719991983389,6.7934,147.2,147.16,22.3351]
[1719991983785,22.3334,147.2,147.16,6.7951]
[1719991984608,6.794,147.19,147.15,6.7956]
[1719991984803,15.54,147.19,147.14,15.54]
[1719991985111,15.54,147.19,147.12,15.4203]
[1719991985112,22.3341,147.19,147.15,6.7957]
[1719991985496,22.3336,147.2,147.16,6.795]
[1719991987589,15.54,147.2,147.17,6.7947]
[1719991987789,6.03731301,147.21,147.18,6.7941]
[1719991988116,21.57731301,147.21,147.17,6.7945]
[1719991988608,6.03731301,147.21,147.18,6.794]
[1719991988815,6.03731301,147.21,147.19,6.7938]
[1719991989113,15.54,147.23,147.19,6.7938]
[1719991990092,6.03731301,147.24,147.2,15.54]
[1719991990695,28.36851301,147.25,147.2,22.3332]
[1719991991704,6.7916,147.24,147.2,22.3332]
[1719991991901,22.3316,147.24,147.2,6.7932]
[1719991992220,22.3316,147.24,147.2,22.3332]
[1719991992221,6.7916,147.24,147.2,22.3332]
[1719991993331,6.03731301,147.25,147.22,6.7922]
[1719991993504,6.03731301,147.25,147.21,22.3328]
[1719991993826,21.57731301,147.25,147.21,6.7928]
[1719991994623,6.03731301,147.25,147.23,15.54]
[1719991994924,6.03731301,147.25,147.21,15.54]
[1719991995627,6.03731301,147.25,147.21,22.3327]
[1719991995805,6.03731301,147.25,147.22,6.7925]
[1719991996322,6.03731301,147.25,147.22,22.3325]
[1719991997522,6.03731301,147.25,147.22,15.54]
[1719991997730,6.03731301,147.25,147.23,6.792]
[1719992000016,42.4498,147.3,147.24,15.54]
[1719992000017,22.0198,147.3,147.24,15.54]
[1719992000260,15.54,147.29,147.26,6.7906]
[1719992000425,34.84601301,147.3,147.26,6.7906]
[1719992000625,15.54,147.29,147.25,22.331]
[1719992001120,22.3293,147.29,147.25,15.54]
[1719992001320,15.54,147.28,147.25,6.7911]
[1719992001521,22.3293,147.29,147.25,6.7911]
[1719992001820,6.7893,147.29,147.25,6.7911]
[1719992002018,22.3293,147.29,147.25,6.7911]
[1719992002232,15.54,147.29,147.25,6.7911]
[1719992002542,21.70471301,147.3,147.21,15.54]
[1719992002713,6.03731301,147.3,147.26,15.54]
[1719992002912,6.03731301,147.3,147.25,15.54]
[1719992002913,28.36611301,147.3,147.25,15.54]
[1719992003138,28.36611301,147.3,147.25,6.7909]
[1719992003320,15.54,147.29,147.25,6.7909]
[1719992003654,28.36611301,147.3,147.25,22.3309]
[1719992003818,28.36611301,147.3,147.26,6.7906]
[1719992004041,6.03731301,147.3,147.27,6.7901]
[1719992004453,28.36631301,147.3,147.25,6.7908]
[1719992004656,15.54,147.29,147.25,6.7908]
[1719992005056,12.82631301,147.3,147.25,6.7908]
[1719992005262,15.54,147.29,147.25,6.7908]
[1719992006260,15.54,147.29,147.26,6.7906]
[1719992006849,6.03731301,147.3,147.26,6.7906]
[1719992007053,21.57731301,147.3,147.26,6.7906]
[1719992009051,6.03731301,147.3,147.26,6.7906]
[1719992009252,6.03731301,147.3,147.28,6.7897]
[1719992009558,6.03731301,147.3,147.29,6.7893]
[1719992009957,6.03731301,147.3,147.28,6.7896]
[1719992011562,6.03731301,147.3,147.29,6.7893]
[1719992011768,6.4811128,147.34,147.28,15.54]
[1719992011972,6.4811128,147.34,147.3,6.7886]
[1719992012181,22.0211128,147.34,147.3,6.7886]
[1719992012345,6.4811128,147.34,147.3,6.7885]
[1719992012545,19.30542581,147.34,147.3,15.54]
[1719992012766,34.84542581,147.34,147.29,22.3292]
[1719992013069,34.84542581,147.34,147.29,6.7892]
[1719992013070,15.54,147.33,147.29,6.7892]
[1719992013671,19.30542581,147.34,147.29,6.7892]
[1719992013852,15.54,147.33,147.29,6.7892]
[1719992014164,22.3276,147.33,147.28,22.3295]
[1719992014357,22.3282,147.32,147.25,15.4502]
[1719992014662,15.54,147.32,147.28,6.7895]
[1719992014863,12.82491301,147.33,147.29,6.7892]
[1719992015057,21.57731301,147.33,147.29,6.7892]
[1719992015243,6.03731301,147.33,147.31,15.54]
[1719992015445,30.6331,147.37,147.32,15.54]
[1719992015645,30.6331,147.37,147.33,6.7871]
[1719992015845,15.0931,147.37,147.33,6.7871]
[1719992016045,30.6331,147.37,147.33,6.7871]
[1719992016347,13.66412341,147.38,147.34,6.7868]
[1719992016564,29.20412341,147.38,147.34,6.7868]
[1719992017168,22.41892341,147.38,147.35,6.7865]
[1719992017374,6.87892341,147.38,147.36,6.786]
[1719992017668,0.8416104,147.38,147.35,22.3263]
[1719992019377,0.8416104,147.38,147.37,22.3256]
[1719992023474,0.8416104,147.38,147.37,38.1077]
[1719992023672,0.8416104,147.38,147.37,38.4477]
[1719992024074,0.8416104,147.38,147.37,38.1077]
[1719992024277,0.8416104,147.38,147.37,6.7856]
[1719992024780,0.8416104,147.38,147.37,22.3256]
[1719992025577,0.8416104,147.38,147.37,22.6656]
[1719992031897,0.8416104,147.38,147.37,6.7856]
[1719992032107,0.8416104,147.38,147.37,22.3256]
[1719992034698,15.1241,147.47,147.44,6.7824]
[1719992035099,15.1241,147.47,147.44,22.3224]
[1719992036294,6.03731301,147.5,147.38,16.589]
[1719992036601,6.03731301,147.5,147.45,6.7818]
[1719992036804,15.54,147.48,147.43,6.7824]
[1719992036987,15.54,147.48,147.43,22.3224]
[1719992037182,15.54,147.48,147.44,6.7823]
[1719992037396,15.54,147.48,147.43,22.3227]
[1719992038407,15.54,147.48,147.42,6.7831]
[1719992038612,15.54,147.47,147.43,6.7828]
[1719992039890,22.321,147.47,147.42,22.3232]
[1719992040087,15.54,147.46,147.42,6.7832]
[1719992040294,16.5864,147.46,147.42,6.7832]
[1719992040607,32.1264,147.46,147.42,6.7832]
[1719992041487,11.5864,147.46,147.41,15.54]
[1719992041702,27.1264,147.46,147.41,15.54]
[1719992042127,27.1264,147.46,147.43,6.7825]
[1719992043904,6.03731301,147.5,147.43,15.54]
[1719992044209,15.54,147.48,147.45,6.7816]
[1719992044724,15.54,147.47,147.44,6.7823]
[1719992045025,15.54,147.46,147.41,15.54]
[1719992045603,6.7811,147.47,147.38,16.589]
[1719992045802,15.54,147.44,147.39,15.54]
[1719992046032,15.54,147.44,147.37,6.5911]
[1719992046033,15.54,147.43,147.38,15.54]
[1719992046320,15.54,147.43,147.4,6.7841]
[1719992046522,15.54,147.41,147.34,15.5001]
[1719992046818,15.54,147.4,147.34,15.5001]
[1719992047021,15.54,147.39,147.34,31.0401]
[1719992047214,15.54,147.4,147.35,15.54]
[1719992047413,15.54,147.41,147.38,6.7851]
[1719992048215,15.54,147.41,147.37,6.7855]
[1719992048737,22.3239,147.41,147.36,22.326]
[1719992049426,15.54,147.41,147.36,22.326]
[1719992049626,12.82021301,147.43,147.37,15.54]
[1719992049806,15.54,147.42,147.37,15.54]
[1719992050121,15.54,147.42,147.38,15.54]
[1719992050344,15.54,147.41,147.34,15.5001]
[1719992050543,15.54,147.39,147.34,15.54]
[1719992050847,22.3248,147.39,147.34,22.3267]
[1719992051137,15.54,147.39,147.35,6.7864]
[1719992051315,22.3249,147.39,147.34,15.54]
[1719992051507,22.3252,147.38,147.33,6.787]
[1719992051709,15.54,147.35,147.27,17.52593888]
[1719992052017,22.3272,147.34,147.29,22.3291]
[1719992052225,22.3272,147.34,147.29,6.7891]
[1719992052533,15.54,147.33,147.29,6.7891]
[1719992052867,22.3272,147.34,147.29,22.3291]
[1719992053541,15.54,147.34,147.29,15.54]
[1719992053828,43.77071301,147.38,147.23,21.5267]
[1719992053829,20.6,147.35,147.23,21.5267]
[1719992054037,20.6,147.35,147.26,6.7903]
[1719992054038,6.7887,147.31,147.26,6.7903]
[1719992054337,6.7887,147.31,147.26,6.7907]
[1719992054513,16.0122,147.33,147.26,6.7907]
[1719992054514,6.788,147.32,147.26,6.7907]
[1719992054716,6.788,147.32,147.23,21.5267]
[1719992054717,6.788,147.32,147.27,6.7901]
[1719992055611,22.7998,147.33,147.27,6.7901]
[1719992056119,16.0122,147.33,147.23,21.5267]
[1719992056337,16.0122,147.33,147.3,6.7887]
[1719992056647,6.03731301,147.34,147.3,6.7887]
[1719992057644,6.03731301,147.34,147.25,31.05]
[1719992057847,15.1109,147.37,147.26,0.34]
[1719992058235,21.14821301,147.37,147.26,0.34]
[1719992058948,6.7861,147.36,147.31,6.7883]
[1719992059149,21.14821301,147.37,147.33,6.7874]
[1719992059742,21.14821301,147.37,147.26,0.34]
[1719992059743,27.93381301,147.37,147.26,0.34]
[1719992059943,27.93381301,147.37,147.31,6.7882]
[1719992060842,27.93381301,147.37,147.32,6.7879]
[1719992061829,21.14821301,147.37,147.32,6.7879]
[1719992062057,21.14821301,147.37,147.33,6.7873]
[1719992064453,6.03731301,147.37,147.33,6.7873]
[1719992064655,6.03731301,147.37,147.34,6.787]
[1719992065956,6.7851,147.38,147.33,6.7873]
[1719992066146,12.9126,147.39,147.34,6.787]
[1719992066745,6.03731301,147.41,147.34,6.1781]
[1719992067060,15.8333,147.46,147.4,6.7838]
[1719992067061,22.6149,147.46,147.4,6.7838]
[1719992067241,22.6149,147.46,147.41,6.7837]
[1719992067654,6.782,147.45,147.4,6.7841]
[1719992068037,15.8333,147.46,147.39,6.7845]
[1719992068365,6.7824,147.44,147.39,6.7845]
[1719992068731,6.782,147.45,147.4,6.7841]
[1719992070258,6.7825,147.44,147.39,6.7846]
[1719992070459,36.2633,147.46,147.35,15.0825]
[1719992070658,6.7836,147.42,147.37,6.7854]
[1719992071762,6.783,147.43,147.38,6.7851]
[1719992072553,6.7826,147.44,147.39,6.7847]
[1719992073150,7.1221,147.45,147.4,6.7842]
[1719992073355,22.6149,147.46,147.41,6.7837]
[1719992075391,15.8333,147.46,147.42,6.7832]
[1719992075877,15.8333,147.46,147.37,31.05]
[1719992075878,6.7819,147.45,147.4,6.784]
[1719992078369,6.7819,147.45,147.37,31.05]
[1719992078370,22.6149,147.46,147.41,6.7837]
[1719992080491,20.43,147.5,147.4,31.05]
[1719992080868,6.7808,147.48,147.43,6.7824]
[1719992081071,6.7811,147.47,147.42,6.7832]
[1719992082587,6.7807,147.48,147.43,6.7828]
[1719992083488,6.7801,147.49,147.44,6.7822]
[1719992083662,23.0825,147.51,147.4,31.05]
[1719992083866,23.0825,147.51,147.45,6.7818]
[1719992083867,6.7799,147.5,147.45,6.7818]
[1719992084372,29.5217,147.51,147.46,6.7813]
[1719992084984,16.388,147.51,147.48,6.7805]
[1719992085182,16.388,147.51,147.47,6.7807]
[1719992085375,16.388,147.51,147.43,31.05]
[1719992085376,0.8416104,147.53,147.51,6.7791]
[1719992085687,0.8416104,147.53,147.43,31.05]
[1719992085884,7.6202104,147.53,147.48,6.7804]
[1719992086087,6.7788,147.52,147.44,20.34]
[1719992086479,0.8416104,147.53,147.43,31.05]
[1719992086684,6.7794,147.51,147.43,31.05]
[1719992086994,6.7794,147.51,147.46,6.7811]
[1719992087176,0.8416104,147.53,147.47,6.7809]
[1719992087378,7.6203104,147.53,147.48,6.7805]
[1719992087573,0.8416104,147.53,147.49,6.7798]
[1719992091717,0.8416104,147.53,147.5,15.48]
[1719992092488,0.8416104,147.53,147.49,61.92]
[1719992092906,0.8416104,147.53,147.47,15.7083]
[1719992093092,0.8416104,147.53,147.51,15.48]
[1719992094216,0.8416104,147.53,147.52,15.48]
[1719992100802,0.8416104,147.53,147.49,6.6241]
[1719992101109,0.8416104,147.53,147.52,15.48]
[1719992104415,0.8416104,147.53,147.47,15.7083]
[1719992104616,0.8416104,147.53,147.51,15.48]